bitfinex-derivatives/quotes_SOLF0:USTF0_20250207
["timestamp","ask_amount","ask_price","bid_price","bid_amount"]
[1738909623574,5.2337,191.02,191.0,0.03365638]
[1738909623873,0.03776555,191.03,191.0,0.03365638]
[1738909625177,5.234,191.01,191.0,0.03365638]
[1738909626384,5.234,191.01,191.0,5.638e-05]
[1738909631785,20.01979728,191.01,191.0,5.638e-05]
[1738909634087,5.234,191.01,191.0,5.638e-05]
[1738909635889,20.01979728,191.01,191.0,5.638e-05]
[1738909637091,5.234,191.01,191.0,5.638e-05]
[1738909644894,20.01979728,191.01,191.0,5.638e-05]
[1738909649912,5.234,191.01,191.0,5.638e-05]
[1738909653514,5.2337,191.02,191.0,5.638e-05]
[1738909654008,5.234,191.01,191.0,5.638e-05]
[1738909654209,0.03776555,191.03,191.0,5.638e-05]
[1738909654614,9.47289177,191.02,191.0,5.638e-05]
[1738909655916,5.234,191.01,191.0,5.638e-05]
[1738909660217,0.03776555,191.03,191.0,5.638e-05]
[1738909660418,0.03776555,191.03,191.02,9.47289177]
[1738909661219,9.47289177,191.08,191.04,5.2331]
[1738909661419,9.47289177,191.08,191.03,1.5687]
[1738909661921,5.2331,191.04,191.03,1.5687]
[1738909663723,0.03763809,191.05,191.03,1.5687]
[1738909666015,0.03763809,191.05,191.03,6.8021]
[1738909666319,0.03763809,191.05,191.03,1.5687]
[1738909668227,5.27053809,191.05,191.03,1.5687]
[1738909669628,9.47289177,191.08,191.03,1.5687]
[1738909669629,5.2324,191.07,191.03,1.5687]
[1738909670729,0.0375438,191.07,191.03,1.60341573]
[1738909671029,5.2327,191.06,191.03,1.60341573]
[1738909671227,9.47289177,191.06,191.03,0.03471573]
[1738909671426,5.2331,191.04,191.03,0.03471573]
[1738909672127,14.70599177,191.04,191.03,0.03471573]
[1738909673733,14.70599177,191.04,191.03,1.573e-05]
[1738909676732,5.2331,191.04,191.03,1.573e-05]
[1738909676939,14.70599177,191.04,191.03,1.573e-05]
[1738909683948,5.2331,191.04,191.03,1.573e-05]
[1738909687351,5.2329,191.06,191.03,1.573e-05]
[1738909688044,9.47289177,191.04,190.87,57.5955008]
[1738909688246,61.02548383,193.59,190.87,57.5955008]
[1738909688247,9.47289177,190.94,190.87,57.5955008]
[1738909688643,9.47289177,190.92,190.87,57.5955008]
[1738909689250,5.2367,190.91,190.89,7.27052715]
[1738909689455,5.2367,190.91,190.9,57.5955008]
[1738909691554,5.2367,190.91,190.9,41.2531008]
[1738909691755,5.2367,190.91,190.9,15.9109008]
[1738909691953,14.85437938,190.92,190.87,141.48849132]
[1738909692151,20.05639254,190.88,190.87,141.48849132]
[1738909692552,20.05639254,190.88,190.87,117.85239132]
[1738909692951,20.05639254,190.88,190.87,51.12537089]
[1738909693254,20.05639254,190.88,190.87,42.57197089]
[1738909693558,5.2385,190.85,190.76,12.00485851]
[1738909694057,0.03961692,190.82,190.76,12.00485851]
[1738909695357,14.81889254,190.78,190.76,7.26615851]
[1738909695747,20.05939254,190.78,190.76,7.26615851]
[1738909696153,14.81889254,190.78,190.76,7.26615851]
[1738909697057,14.81889254,190.78,190.69,5.2426]
[1738909697555,14.85835604,190.75,190.54,355.83483902]
[1738909697751,14.81889254,190.72,190.62,3.2846]
[1738909697959,14.81889254,190.69,190.57,14.81889254]
[1738909698354,14.81889254,190.69,190.54,370.65373156]
[1738909698554,0.03627247,190.65,190.58,361.08043902]
[1738909698760,0.03627247,190.65,190.58,355.83483902]
[1738909699351,14.81889254,190.63,190.58,355.83483902]
[1738909699554,14.81889254,190.6,190.58,355.83483902]
[1738909699955,14.81889254,190.6,190.51,4.9268]
[1738909700664,14.81889254,190.6,190.45,14.81889254]
[1738909700861,14.81889254,190.57,190.46,3.0581]
[1738909701069,19.29889254,190.57,190.46,3.0581]
[1738909701392,14.81889254,190.48,190.41,1.5274]
[1738909701867,14.81889254,190.48,190.36,14.81889254]
[1738909702064,0.0353718,190.46,190.37,1.656]
[1738909702961,0.0353718,190.46,190.34,3.0581]
[1738909703164,5.25,190.43,190.35,1.656]
[1738909703359,28.44210751,190.46,190.34,3.0581]
[1738909703559,0.036762,190.41,190.34,3.0581]
[1738909703762,5.2509,190.4,190.34,3.0581]
[1738909703963,23.82210751,190.4,190.29,6.9096]
[1738909704268,5.253,190.32,190.15,23.82210751]
[1738909704460,23.82210751,190.34,190.17,5.257]
[1738909704461,28.46210751,190.34,190.17,5.257]
[1738909704665,28.46210751,190.34,190.16,1.656]
[1738909704863,0.03914887,190.25,190.16,1.656]
[1738909705260,0.03914887,190.25,190.19,23.82210751]
[1738909705556,1.05080649,190.33,190.23,23.82210751]
[1738909705759,23.82210751,190.4,190.24,1.6759]
[1738909705959,28.50210751,190.44,190.27,23.82210751]
[1738909706164,28.50210751,190.44,190.28,5.254]
[1738909706563,28.50210751,190.44,190.27,23.82210751]
[1738909706564,5.2518,190.37,190.27,5.2541]
[1738909706862,0.03367421,190.38,190.34,0.03333035]
[1738909707057,5.2535,190.31,190.24,1.6759]
[1738909707454,23.82210751,190.35,190.24,1.6759]
[1738909707658,5.2542,190.28,190.18,23.82210751]
[1738909708161,23.82210751,190.38,190.11,1.6698]
[1738909708162,23.82210751,190.46,190.25,23.82210751]
[1738909708662,0.03799339,190.37,190.25,23.82210751]
[1738909708857,0.03799339,190.37,190.27,23.82210751]
[1738909709058,23.82210751,190.46,190.27,23.82210751]
[1738909709259,23.82210751,190.46,190.36,5.2516]
[1738909709456,3.811e-05,190.34,190.31,23.82210751]
[1738909709656,21.37421837,190.45,190.31,23.82210751]
[1738909709866,5.2498,190.44,190.36,5.2517]
[1738909710067,5.2498,190.44,190.31,23.82210751]
[1738909710359,21.37421837,190.45,190.35,5.2521]
[1738909710561,21.37421837,190.45,190.35,23.82210751]
[1738909710755,0.03537893,190.42,190.38,0.03849069]
[1738909711568,21.37421837,190.45,190.38,0.03849069]
[1738909711764,21.37421837,190.45,190.42,5.2501]
[1738909712063,1.6342,190.51,190.38,23.8605982]
[1738909712262,122.91435001,190.52,190.38,23.8605982]
[1738909712470,122.91435001,190.52,190.38,23.82210751]
[1738909712670,122.91435001,190.52,190.41,23.82210751]
[1738909712865,0.03532117,190.47,190.43,0.03785422]
[1738909713065,122.91435001,190.52,190.43,0.03785422]
[1738909713267,122.91435001,190.52,190.47,5.2488]
[1738909713467,1.6276,190.58,190.44,23.82210751]
[1738909713662,25.48790751,190.63,190.44,23.82210751]
[1738909713971,25.48790751,190.63,190.47,23.82210751]
[1738909714367,1.6458,190.64,190.5,23.82210751]
[1738909714667,1.6458,190.64,190.45,4.66]
[1738909714668,0.040176,190.57,190.53,0.03367292]
[1738909715671,0.040176,190.57,190.53,5.28057292]
[1738909715868,0.040176,190.57,190.53,0.03367292]
[1738909717668,29.06880751,190.55,190.53,0.03367292]
[1738909718170,1.721376,190.57,190.53,0.03367292]
[1738909719066,5.2464,190.56,190.53,0.03367292]
[1738909719268,0.040176,190.57,190.53,0.03367292]
[1738909719476,23.82210751,190.56,190.53,0.03367292]
[1738909719665,5.2468,190.55,190.53,0.03367292]
[1738909719866,23.82210751,190.56,190.43,1.6095]
[1738909720270,5.2484,190.49,190.43,1.6095]
[1738909720968,5.2493,190.46,190.43,1.6095]
[1738909721170,23.82210751,190.52,190.44,0.03740507]
[1738909721171,0.03956206,190.48,190.44,0.03740507]
[1738909721479,5.2489,190.47,190.44,0.03740507]
[1738909721686,23.82210751,190.52,190.36,1.6842]
[1738909721863,0.0332329,190.47,190.44,0.03430686]
[1738909722081,5.2491,190.46,190.44,0.03430686]
[1738909722970,5.2508,190.4,190.36,1.6842]
[1738909723169,23.82210751,190.42,190.32,3.2769]
[1738909723876,5.2507,190.41,190.32,3.2769]
[1738909724078,23.82210751,190.42,190.32,3.2769]
[1738909724277,0.03587822,190.38,190.35,0.03326893]
[1738909724478,5.28717822,190.38,190.35,0.03326893]
[1738909724680,0.03587822,190.38,190.35,0.03326893]
[1738909724872,5.2535,190.3,190.22,5.2556]
[1738909725177,23.82210751,190.36,190.21,1.6282]
[1738909725178,4.7,190.36,190.21,1.6282]
[1738909725382,4.7,190.36,190.22,1.6917]
[1738909725687,4.7,190.36,190.27,5.2543]
[1738909725876,4.7,190.36,190.22,1.6917]
[1738909726074,0.03893963,190.33,190.22,1.6917]
[1738909726277,0.03893963,190.33,190.29,5.2536]
[1738909726676,0.03893963,190.33,190.22,1.6917]
[1738909726875,0.03893963,190.33,190.22,6.9472]
[1738909727673,0.03893963,190.33,190.21,1.6282]
[1738909728073,23.82210751,190.34,190.21,1.6282]
[1738909728384,0.03727283,190.29,190.21,25.45030751]
[1738909728578,6.3906,190.36,190.21,25.45030751]
[1738909729185,23.82210751,190.34,190.21,1.6282]
[1738909729382,5.2535,190.31,190.21,6.8842]
[1738909729682,0.03461406,190.28,190.24,0.03417681]
[1738909730183,5.2525,190.34,190.24,0.03417681]
[1738909730483,23.82210751,190.34,190.24,0.03417681]
[1738909730675,5.2546,190.26,190.24,0.03417681]
[1738909730877,23.82210751,190.34,190.24,0.03417681]
[1738909731184,5.2549,190.25,190.24,0.03417681]
[1738909731675,23.82210751,190.34,190.24,0.03417681]
[1738909731875,0.03715998,190.26,190.24,0.03417681]
[1738909732075,23.82210751,190.34,190.24,0.03417681]
[1738909732289,0.03958997,190.27,190.24,0.03417681]
[1738909732480,5.2527,190.33,190.26,5.2546]
[1738909732785,4.7,190.36,190.21,23.82210751]
[1738909732985,0.03674723,190.31,190.28,0.037037]
[1738909733186,0.03674723,190.31,190.21,23.82210751]
[1738909733582,21.37421837,190.34,190.21,23.82210751]
[1738909733786,18.83231837,190.34,190.21,23.82210751]
[1738909734487,23.82210751,190.38,190.21,23.82210751]
[1738909734882,0.03815294,190.31,190.28,0.0339095]
[1738909735085,23.82210751,190.38,190.28,0.0339095]
[1738909735286,0.0346818,190.31,190.28,0.0339095]
[1738909735486,23.82210751,190.38,190.28,0.0339095]
[1738909735678,0.03856007,190.31,190.28,0.0339095]
[1738909735884,0.03856007,190.31,190.21,23.82210751]
[1738909735885,28.46210751,190.3,190.1,12.97486407]
[1738909736080,23.82210751,190.26,190.2,6e-05]
[1738909736389,23.82210751,190.22,190.1,12.97486407]
[1738909737089,0.038874,190.18,190.14,0.03411104]
[1738909739786,23.86098151,190.18,190.14,0.03411104]
[1738909742199,5.2574,190.16,190.14,0.03411104]
[1738909742398,23.86098151,190.18,190.14,0.03411104]
[1738909742797,23.86098151,190.18,190.1,12.97486407]
[1738909742999,0.038874,190.18,190.1,12.97486407]
[1738909743492,5.2574,190.16,190.1,12.97486407]
[1738909743693,0.038874,190.18,190.1,12.97486407]
[1738909743894,0.038874,190.18,190.11,0.02126209]
[1738909744315,29.31431505,190.3,190.11,0.02126209]
[1738909744511,5.2553,190.24,190.12,5.2584]
[1738909744714,23.82210751,190.3,190.13,1.5519]
[1738909744935,23.82210751,190.3,190.14,23.82210751]
[1738909745513,0.04032368,190.24,190.2,0.03401528]
[1738909749413,0.04032368,190.24,190.21,5.2557]
[1738909749618,72.13656102,190.36,190.22,23.82210751]
[1738909750215,3.2561,190.37,190.23,1.6283]
[1738909750711,0.04026012,190.32,190.28,0.03369144]
[1738909751212,5.2535,190.3,190.28,0.03369144]
[1738909755123,0.04026012,190.32,190.16,29.07920751]
[1738909755330,23.82210751,190.32,190.16,23.82210751]
[1738909755721,5.2558,190.22,190.16,23.82210751]
[1738909756027,4.76,190.27,190.16,23.82210751]
[1738909756329,0.03368773,190.21,190.17,0.03620938]
[1738909756715,4.76,190.27,190.2,23.82210751]
[1738909756918,5.2543,190.28,190.2,23.82210751]
[1738909757129,4.74,190.34,190.2,23.82210751]
[1738909758024,0.03544128,190.29,190.25,0.03608914]
[1738909761330,5.2543,190.27,190.25,0.03608914]
[1738909761631,0.03544128,190.29,190.25,0.03608914]
[1738909762032,5.2546,190.26,190.25,0.03608914]
[1738909765134,5.2546,190.26,190.25,8.914e-05]
[1738909766230,0.03544128,190.29,190.25,8.914e-05]
[1738909769242,5.28924128,190.29,190.25,8.914e-05]
[1738909769733,5.2543,190.28,190.25,8.914e-05]
[1738909769929,0.03544128,190.29,190.25,8.914e-05]
[1738909770340,5.2546,190.26,190.25,8.914e-05]
[1738909773542,5.2543,190.27,190.25,8.914e-05]
[1738909773742,0.03544128,190.29,190.25,8.914e-05]
[1738909775742,5.28934128,190.29,190.25,8.914e-05]
[1738909775944,0.03544128,190.29,190.25,8.914e-05]
[1738909779945,5.2546,190.26,190.25,8.914e-05]
[1738909788259,5.2544,190.27,190.25,8.914e-05]
[1738909788549,0.03544128,190.29,190.25,8.914e-05]
[1738909789060,5.2546,190.26,190.25,8.914e-05]
[1738909793646,5.2543,190.28,190.25,8.914e-05]
[1738909794555,5.28924128,190.29,190.25,8.914e-05]
[1738909795745,0.03544128,190.29,190.25,8.914e-05]
[1738909797350,0.03544128,190.29,190.26,23.82210751]
[1738909797652,21.09557344,190.37,190.26,23.82210751]
[1738909798654,0.03773847,190.33,190.3,0.04005727]
[1738909800457,21.09557344,190.42,190.32,23.82210751]
[1738909800653,21.09557344,190.42,190.33,3.0567]
[1738909800854,5.2507,190.41,190.34,5.2523]
[1738909801049,21.09557344,190.42,190.33,3.0567]
[1738909801660,0.03868113,190.39,190.36,0.04001637]
[1738909801862,21.09557344,190.42,190.36,0.04001637]
[1738909802153,21.09557344,190.42,190.38,5.2512]
[1738909802361,21.09557344,190.42,190.38,23.82210751]
[1738909802760,21.09557344,190.42,190.4,5.2507]
[1738909803066,21.12958487,190.42,190.4,5.2507]
[1738909803261,16.04478487,190.42,190.4,5.2507]
[1738909803559,213.50090341,190.49,190.38,23.82210751]
[1738909803560,13.46837344,190.5,190.38,23.82210751]
[1738909803759,5.2496,190.45,190.38,23.82210751]
[1738909804155,13.46837344,190.5,190.39,5.2507]
[1738909804352,13.46837344,190.5,190.33,3.0567]
[1738909804556,37.29048095,190.5,190.33,3.0567]
[1738909804750,0.03819494,190.43,190.4,0.03776239]
[1738909804959,13.46837344,190.5,190.4,0.03776239]
[1738909805155,13.46837344,190.5,190.45,5.2493]
[1738909805356,237.32301092,190.59,190.4,0.03776239]
[1738909805357,0.03836858,190.47,190.44,23.82210751]
[1738909805557,1.6004,190.6,190.46,23.85787266]
[1738909805763,56.78508984,190.62,190.49,23.82210751]
[1738909806561,5.2455,190.59,190.52,5.2473]
[1738909806766,0.03970613,190.57,190.54,0.03972197]
[1738909807863,0.03970613,190.57,190.37,193.0]
[1738909807864,23.82210751,190.52,190.37,23.82210751]
[1738909808063,3.1844,190.51,190.34,1.4446]
[1738909808362,23.82210751,190.49,190.34,1.4446]
[1738909808563,4.62,190.49,190.35,25.43250751]
[1738909808754,0.03779015,190.43,190.4,0.03362811]
[1738909809458,23.82210751,190.6,190.41,23.82210751]
[1738909809668,4.8429,190.67,190.49,23.82210751]
[1738909809869,23.82210751,190.62,190.46,23.82210751]
[1738909810067,23.82210751,190.59,190.44,5.2494]
[1738909810264,1.6585,190.58,190.44,5.2494]
[1738909810479,5.2477,190.51,190.42,5.2501]
[1738909810766,5.2477,190.51,190.49,0.03896496]
[1738909810960,1.6567,190.57,190.41,6.1756]
[1738909811161,0.03335367,190.52,190.48,0.04039164]
[1738909812165,0.03335367,190.52,190.5,5.2479]
[1738909812363,5.246,190.58,190.49,23.82210751]
[1738909812666,4.62,190.64,190.49,23.82210751]
[1738909812963,1.5376,190.65,190.53,5.2471]
[1738909813160,1.5376,190.65,190.52,23.82210751]
[1738909813563,0.03819498,190.6,190.57,0.03547634]
[1738909814367,0.03819498,190.6,190.57,5.28147634]
[1738909814569,0.03819498,190.6,190.57,0.03547634]
[1738909814765,38.62552206,190.73,190.57,38.6609984]
[1738909815473,4.6,190.75,190.57,38.6609984]
[1738909815674,40.15612206,190.76,190.6,38.62552206]
[1738909815880,0.03877901,190.68,190.64,0.03992409]
[1738909816170,1.5306,190.76,190.63,38.62552206]
[1738909816380,0.03939962,190.68,190.64,0.04036619]
[1738909816574,5.2419,190.72,190.65,5.2436]
[1738909816775,0.03343519,190.68,190.64,0.03512253]
[1738909817079,38.62552206,190.73,190.57,38.62552206]
[1738909817272,38.62552206,190.73,190.64,0.03454211]
[1738909817273,5.2439,190.65,190.64,0.03454211]
[1738909817478,5.2439,190.65,190.64,4.211e-05]
[1738909818379,6.8553,190.67,190.64,4.211e-05]
[1738909818583,1.6119,190.67,190.64,4.211e-05]
[1738909818779,0.03548593,190.68,190.64,4.211e-05]
[1738909819781,5.27858593,190.68,190.64,4.211e-05]
[1738909820275,0.03548593,190.68,190.64,4.211e-05]
[1738909820480,5.2433,190.67,190.64,4.211e-05]
[1738909821178,5.2438,190.65,190.64,4.211e-05]
[1738909827189,5.2473,190.53,190.46,38.62552206]
[1738909827488,38.62552206,190.6,190.44,5.2494]
[1738909827783,5.2475,190.52,190.43,38.62552206]
[1738909827986,38.62552206,190.6,190.43,38.62552206]
[1738909828486,5.2477,190.51,190.5,0.04012491]
[1738909828787,38.62552206,190.6,190.5,0.04012491]
[1738909829184,0.03460346,190.57,190.5,0.04012491]
[1738909829789,5.2475,190.52,190.5,0.04012491]
[1738909830686,0.03486099,190.53,190.5,0.04012491]
[1738909831785,0.03486099,190.53,190.52,5.2474]
[1738909832695,0.03486099,190.53,190.5,5.28792491]
[1738909832988,0.03486099,190.53,190.5,0.04012491]
[1738909833388,5.2477,190.52,190.5,0.04012491]
[1738909833588,0.03486099,190.53,190.5,0.04012491]
[1738909836693,0.03486099,190.53,190.5,5.28812491]
[1738909837805,0.03486099,190.53,190.5,0.04012491]
[1738909838095,8.83,190.57,190.51,23.79090281]
[1738909838295,8.83,190.57,190.52,3.2134]
[1738909838496,8.83,190.57,190.56,5.2463]
[1738909838994,1.5823,190.64,190.54,23.79090281]
[1738909839191,0.03630744,190.58,190.55,0.03789414]
[1738909840200,4.748,190.58,190.57,23.79090281]
[1738909840503,9.45,190.61,190.57,23.79090281]
[1738909840699,32.34439881,190.67,190.6,29.03610281]
[1738909840899,32.34439881,190.67,190.6,23.79090281]
[1738909841290,0.03894193,190.65,190.63,23.79090281]
[1738909841898,0.03894193,190.65,190.62,0.03324141]
[1738909843001,11.72894193,190.65,190.62,0.03324141]
[1738909843406,5.2444,190.63,190.62,0.03324141]
[1738909844695,9.4341,190.64,190.62,0.03324141]
[1738909845198,5.2444,190.63,190.62,0.03324141]
[1738909846409,7.08,190.64,190.62,0.03324141]
[1738909846605,12.3241,190.64,190.62,0.03324141]
[1738909847903,7.08,190.64,190.62,0.03324141]
[1738909849011,7.08,190.64,190.62,5.27774141]
[1738909851310,11.27,190.64,190.62,5.27774141]
[1738909851912,11.27,190.64,190.62,0.03324141]
[1738909852913,5.2444,190.63,190.62,0.03324141]
[1738909854007,11.27,190.64,190.62,0.03324141]
[1738909854612,5.2444,190.63,190.62,0.03324141]
[1738909855810,11.27,190.64,190.62,0.03324141]
[1738909858615,5.2444,190.63,190.62,0.03324141]
[1738909859724,11.27,190.64,190.62,0.03324141]
[1738909860111,11.72894193,190.65,190.62,0.03324141]
[1738909860420,10.99,190.67,190.64,23.79090281]
[1738909861113,10.99,190.67,190.62,0.03324141]
[1738909861314,19.37,190.67,190.64,5.2441]
[1738909861515,0.03373633,190.66,190.64,5.2441]
[1738909861715,0.03373633,190.66,190.62,0.03324141]
[1738909861909,0.03373633,190.66,190.63,5.2443]
[1738909862112,0.03373633,190.66,190.62,0.03324141]
[1738909863425,7.71373633,190.66,190.62,0.03324141]
[1738909864124,7.71373633,190.66,190.64,5.2441]
[1738909864726,7.71373633,190.66,190.65,5.2438]
[1738909865620,8.65,190.73,190.64,23.79090281]
[1738909865821,8.65,190.73,190.67,23.79090281]
[1738909866019,8.65,190.73,190.64,23.79090281]
[1738909866218,5.2425,190.7,190.64,23.79090281]
[1738909866817,0.03764114,190.69,190.65,0.03376515]
[1738909868127,0.03764114,190.69,190.67,5.2431]
[1738909868827,0.03764114,190.69,190.68,5.243]
[1738909871824,5.12,190.7,190.66,14.84569226]
[1738909872130,8.65,190.73,190.69,14.84569226]
[1738909872433,8.47,190.76,190.75,5.2411]
[1738909872625,8.47,190.76,190.75,20.08679226]
[1738909872828,1.5522,190.83,190.75,14.84569226]
[1738909873357,0.03665037,190.81,190.75,14.84569226]
[1738909873827,0.03665037,190.81,190.78,14.84569226]
[1738909874227,0.03665037,190.81,190.8,5.2397]
[1738909874428,4.19,190.83,190.78,14.84569226]
[1738909874617,4.19,190.83,190.75,1.6354]
[1738909874618,4.19,190.83,190.82,23.70803392]
[1738909874821,21.08439881,190.84,190.83,5.2389]
[1738909875024,56.78508984,190.85,190.83,5.2389]
[1738909875225,56.78508984,190.85,190.82,23.70803392]
[1738909875731,56.80812911,190.85,190.83,5.2386]
[1738909875926,0.02303927,190.85,190.83,5.2386]
[1738909876727,0.02303927,190.85,190.82,23.74288742]
[1738909876929,5.26143927,190.85,190.82,0.0348535]
[1738909877128,0.02303927,190.85,190.82,0.0348535]
[1738909878135,0.02303927,190.85,190.75,23.70803392]
[1738909878434,0.02303927,190.85,190.72,23.70803392]
[1738909878626,5.2395,190.81,190.72,23.70803392]
[1738909879328,5.2395,190.81,190.75,0.03874142]
[1738909879534,0.03714776,190.78,190.75,0.03874142]
[1738909879733,0.03714776,190.78,190.75,5.27974142]
[1738909879930,0.03714776,190.78,190.75,0.03874142]
[1738909880530,0.03714776,190.78,190.77,5.2406]
[1738909880727,0.03714776,190.78,190.75,0.03874142]
[1738909881628,0.03714776,190.78,190.75,5.27984142]
[1738909882723,0.03714776,190.78,190.75,0.03874142]
[1738909883235,0.03714776,190.78,190.66,23.70803392]
[1738909883533,3.2901,190.82,190.69,23.70803392]
[1738909883929,23.70803392,190.8,190.63,23.70803392]
[1738909884335,23.70803392,190.8,190.7,0.03371324]
[1738909884336,5.2423,190.71,190.7,0.03371324]
[1738909886037,0.03856549,190.72,190.7,0.03371324]
[1738909887338,13.0501,190.82,190.7,0.03371324]
[1738909887538,13.0501,190.82,190.74,23.70803392]
[1738909888023,13.0501,190.82,190.7,25.25543392]
[1738909888227,5.2402,190.79,190.73,5.2415]
[1738909888557,0.03851764,190.78,190.74,0.03320588]
[1738909888737,0.03851764,190.78,190.74,23.7412398]
[1738909888928,0.03851764,190.78,190.74,28.9823398]
[1738909889233,0.03851764,190.78,190.74,0.03320588]
[1738909890238,5.2406,190.77,190.74,0.03320588]
[1738909890841,0.03851764,190.78,190.74,0.03320588]
[1738909892441,5.2406,190.77,190.74,0.03320588]
[1738909892641,0.03851764,190.78,190.74,0.03320588]
[1738909892838,0.03851764,190.78,190.68,23.70803392]
[1738909893045,0.03851764,190.78,190.68,28.95083392]
[1738909893339,0.03851764,190.78,190.65,23.70803392]
[1738909893545,23.70803392,190.8,190.62,23.70803392]
[1738909894039,0.03368895,190.73,190.69,0.03424114]
[1738909894342,5.2423,190.71,190.69,0.03424114]
[1738909895236,1.6749,190.72,190.69,0.03424114]
[1738909895745,0.03368895,190.73,190.69,23.74227506]
[1738909895942,0.03368895,190.73,190.71,5.2421]
[1738909896242,0.03368895,190.73,190.69,0.03424114]
[1738909897542,0.03368895,190.73,190.7,5.2424]
[1738909898144,9.44368895,190.73,190.7,5.2424]
[1738909900247,10.91368895,190.73,190.7,5.2424]
[1738909904544,10.91368895,190.73,190.69,23.74227506]
[1738909904746,10.91368895,190.73,190.72,5.2419]
[1738909904949,10.91368895,190.73,190.69,0.03424114]
[1738909905347,19.48368895,190.73,190.69,0.03424114]
[1738909905943,24.72538895,190.73,190.69,5.27694114]
[1738909906144,19.48368895,190.73,190.69,5.27694114]
[1738909906846,19.48368895,190.73,190.7,5.2425]
[1738909909146,19.48368895,190.73,190.69,0.03424114]
[1738909910949,19.48368895,190.73,190.71,5.242]
[1738909911466,19.48368895,190.73,190.69,0.03424114]
[1738909911951,19.48368895,190.73,190.71,5.242]
[1738909912454,19.48368895,190.73,190.69,0.03424114]
[1738909912654,19.48368895,190.73,190.71,5.2422]
[1738909913752,24.72538895,190.73,190.69,0.03424114]
[1738909913952,19.48368895,190.73,190.69,0.03424114]
[1738909915260,5.2425,190.7,190.69,0.03424114]
[1738909916662,10.91368895,190.73,190.69,0.03424114]
[1738909916964,10.91368895,190.73,190.7,14.83845242]
[1738909917163,21.77368895,190.73,190.7,14.83845242]
[1738909917355,21.77368895,190.73,190.72,5.2419]
[1738909917953,21.77368895,190.73,190.7,20.08065242]
[1738909918657,21.77368895,190.73,190.7,5.2422]
[1738909919957,27.01538895,190.73,190.69,0.03424114]
[1738909920565,27.01538895,190.73,190.69,5.27694114]
[1738909920863,21.77368895,190.73,190.69,5.27694114]
[1738909921061,21.77368895,190.73,190.72,5.2419]
[1738909921666,21.77368895,190.73,190.69,0.03424114]
[1738909922960,21.77368895,190.73,190.72,5.2419]
[1738909923860,21.77368895,190.73,190.7,5.2424]
[1738909924065,21.77368895,190.73,190.69,0.03424114]
[1738909924461,27.01538895,190.73,190.69,0.03424114]
[1738909924667,21.77368895,190.73,190.69,0.03424114]
[1738909925161,5.2421,190.72,190.69,0.03424114]
[1738909926169,12.36368895,190.73,190.69,0.03424114]
[1738909926365,10.89368895,190.73,190.69,0.03424114]
[1738909926562,19.61368895,190.73,190.69,0.03424114]
[1738909927169,19.61368895,190.73,190.72,5.2419]
[1738909927567,21.09368895,190.73,190.72,5.2419]
[1738909928171,12.84868895,190.73,190.72,5.2419]
[1738909928373,1.6203,190.79,190.77,5.2403]
[1738909929468,1.6203,190.79,190.76,0.03882942]
[1738909930574,0.03675119,190.8,190.77,5.2405]
[1738909930875,0.03675119,190.8,190.76,0.03882942]
[1738909931475,0.03675119,190.8,190.79,5.24]
[1738909933176,17.2485,190.86,190.76,23.78238315]
[1738909933378,17.2485,190.86,190.79,5.24]
[1738909933577,5.2386,190.84,190.79,5.24]
[1738909933770,17.2485,190.86,190.76,23.74355373]
[1738909933967,13.9486,190.86,190.76,23.74355373]
[1738909934169,13.9486,190.86,190.79,23.74355373]
[1738909934371,0.02083443,190.83,190.81,5.2394]
[1738909937478,0.02083443,190.83,190.82,5.2392]
[1738909938780,0.02083443,190.83,190.81,14.82079198]
[1738909939079,0.02083443,190.83,190.81,20.06019198]
[1738909939882,0.02083443,190.83,190.82,5.2392]
[1738909943179,0.02083443,190.83,190.8,5.2395]
[1738909943380,0.02083443,190.83,190.79,0.03642672]
[1738909943578,0.02083443,190.83,190.72,14.82079198]
[1738909943882,5.2398,190.8,190.72,14.82079198]
[1738909944083,1.599,190.79,190.72,14.82079198]
[1738909944485,1.599,190.79,190.72,20.06259198]
[1738909944685,0.03944319,190.77,190.74,0.03367806]
[1738909947282,0.03944319,190.77,190.66,14.82079198]
[1738909947489,29.04979198,190.79,190.66,14.82079198]
[1738909947682,5.2421,190.72,190.66,14.82079198]
[1738909948486,0.04003529,190.71,190.67,0.0395662]
[1738909950286,5.28223529,190.71,190.67,0.0395662]
[1738909950484,14.82079198,190.69,190.56,14.82079198]
[1738909950790,14.82079198,190.66,190.54,21.66051103]
[1738909950991,1.6314,190.68,190.59,5.2454]
[1738909951197,5.2439,190.65,190.59,5.2454]
[1738909951683,5.2444,190.63,190.6,0.03908153]
[1738909951879,0.03546642,190.64,190.6,0.03908153]